fUSD/lending_fUSD_20250629
["ID","MTS","AMOUNT","RATE_DAILY","PERIOD"]
[368452388,1751182249099,-490.0,0.00027729,3]
[368452390,1751182249109,-490.0,0.00027729,3]
[368452392,1751182249119,-490.0,0.00027729,3]
[368452394,1751182249128,-490.0,0.00027729,3]
[368452396,1751182249137,-490.0,0.00027729,3]
[368452398,1751182249147,-490.0,0.00027729,3]
[368452400,1751182249158,-490.0,0.00027729,3]
[368452401,1751182249171,-490.0,0.00027729,3]
[368452403,1751182249181,-490.0,0.00027729,3]
[368452405,1751182249190,-490.0,0.00027729,3]
[368452407,1751182249200,-602.56,0.00027729,3]
[368452410,1751182249210,-490.0,0.00027729,3]
[368452412,1751182249220,-490.0,0.00027729,3]
[368452413,1751182249230,-549.21,0.00027729,3]
[368452416,1751182249240,-490.0,0.00027729,3]
[368452417,1751182249249,-786.29,0.00027729,3]
[368452419,1751182249259,-259.45027359,0.00027729,3]
[368452421,1751182249268,-1271.32,0.00027729,3]
[368452423,1751182249278,-490.0,0.00027729,3]
[368452425,1751182249288,-490.0,0.00027729,3]
[368452427,1751182249297,-490.0,0.00027729,3]
[368452429,1751182249307,-157.12761131,0.00027729,3]
[368452431,1751182249316,-490.0,0.00027729,2]
[368452433,1751182249325,-683.52,0.00027729,3]
[368452435,1751182249334,-490.0,0.00027729,3]
[368452437,1751182249343,-490.0,0.00027729,3]
[368452439,1751182249353,-490.0,0.00027729,3]
[368452441,1751182249362,-490.0,0.00027729,3]
[368452443,1751182249372,-490.0,0.00027729,3]
[368452445,1751182249381,-438.8881471,0.00027729,3]
[368452447,1751182249391,-490.0,0.00027729,3]
[368452449,1751182249400,-490.0,0.00027729,3]
[368452451,1751182249409,-490.0,0.00027729,3]
[368452453,1751182249419,-490.0,0.00027729,3]
[368452455,1751182249428,-490.0,0.00027729,3]
[368452457,1751182249438,-490.0,0.00027729,3]
[368452459,1751182249447,-490.0,0.00027729,3]
[368452461,1751182249457,-595.47523367,0.00027729,3]
[368452463,1751182249466,-490.0,0.00027729,3]
[368452465,1751182249475,-490.0,0.00027729,3]
[368452467,1751182249484,-490.0,0.00027729,3]
[368452469,1751182249493,-490.0,0.00027729,3]
[368452471,1751182249503,-1090.8,0.00027729,3]
[368452473,1751182249512,-490.0,0.00027729,3]
[368452475,1751182249522,-490.0,0.00027729,3]
[368452477,1751182249532,-490.0,0.00027729,3]
[368452479,1751182249541,-490.0,0.00027729,3]
[368452481,1751182249551,-490.0,0.00027729,3]
[368452483,1751182249560,-574.36,0.00027729,3]
[368452485,1751182249570,-490.0,0.00027729,3]
[368452487,1751182249579,-490.0,0.00027729,3]
[368452489,1751182249588,-490.0,0.00027729,3]
[368452491,1751182249598,-490.0,0.00027729,3]
[368452493,1751182249608,-490.0,0.00027729,3]
[368452495,1751182249617,-490.0,0.00027729,3]
[368452497,1751182249627,-490.0,0.00027729,3]
[368452499,1751182249636,-490.0,0.00027729,3]
[368452501,1751182249646,-490.0,0.00027729,3]
[368452503,1751182249655,-490.0,0.00027729,3]
[368452505,1751182249665,-490.0,0.00027729,3]
[368452507,1751182249675,-568.403321,0.00027729,3]
[368452509,1751182249684,-490.0,0.00027729,3]
[368452511,1751182249694,-918.29,0.00027729,3]
[368452513,1751182249703,-490.0,0.00027729,3]
[368452515,1751182249712,-490.0,0.00027729,3]
[368452517,1751182249721,-490.0,0.00027729,3]
[368452519,1751182249731,-850.17,0.00027729,3]
[368452521,1751182249740,-493.16899547,0.00027729,3]
[368452523,1751182249749,-490.0,0.00027729,3]
[368452525,1751182249758,-490.0,0.00027729,3]
[368452527,1751182249768,-490.0,0.00027729,3]
[368452529,1751182249777,-490.0,0.00027729,3]
[368452531,1751182249786,-490.0,0.00027729,3]
[368452533,1751182249796,-1510.07,0.00027729,3]
[368452535,1751182249804,-491.26376242,0.00027729,3]
[368452537,1751182249813,-490.0,0.00027729,3]
[368452539,1751182249822,-490.0,0.00027729,3]
[368452541,1751182249832,-535.46584948,0.00027729,3]
[368452542,1751182249842,-490.0,0.00027729,3]
[368452544,1751182249852,-490.0,0.00027729,3]
[368452546,1751182249861,-490.0,0.00027729,3]
[368452548,1751182249871,-1968.49,0.00027729,3]
[368452550,1751182249880,-1024.8,0.00027729,3]
[368452552,1751182249889,-490.0,0.00027729,3]
[368452554,1751182249898,-1938.21,0.00027729,3]
[368452556,1751182249908,-490.0,0.00027729,3]
[368452558,1751182249917,-490.0,0.00027729,3]
[368452560,1751182249926,-490.0,0.00027729,3]
[368452562,1751182249935,-2280.24,0.00027729,3]
[368452564,1751182249945,-490.0,0.00027729,3]
[368452566,1751182249954,-490.0,0.00027729,3]
[368452568,1751182249964,-490.0,0.00027729,3]
[368452570,1751182249975,-490.0,0.00027729,3]
[368452572,1751182249985,-490.0,0.00027729,3]
[368452574,1751182249995,-490.0,0.00027729,3]
[368452576,1751182250006,-490.0,0.00027729,3]
[368452578,1751182250015,-490.0,0.00027729,3]
[368452580,1751182250025,-1310.03,0.00027729,3]
[368452582,1751182250034,-2079.14,0.00027729,3]
[368452584,1751182250043,-490.0,0.00027729,3]
[368452586,1751182250053,-984.88,0.00027729,3]
[368452588,1751182250062,-490.0,0.00027729,3]
[368452590,1751182250072,-505.79,0.00027729,3]
[368452592,1751182250082,-931.44,0.00027729,3]
[368452594,1751182250092,-1351.45,0.00027729,3]
[368452596,1751182250101,-490.0,0.00027729,3]
[368452598,1751182250111,-490.0,0.00027729,3]
[368452600,1751182250120,-490.0,0.00027729,3]
[368452602,1751182250130,-490.0,0.00027729,3]
[368452604,1751182250139,-1382.04,0.00027729,3]
[368452606,1751182250150,-1189.11,0.00027729,3]
[368452608,1751182250159,-490.0,0.00027729,3]
[368452610,1751182250171,-490.0,0.00027729,3]
[368452612,1751182250181,-261.48737437,0.00027729,3]
[368452614,1751182250190,-697.02,0.00027729,3]
[368452616,1751182250199,-2513.82,0.00027729,3]
[368452617,1751182250208,-717.45,0.00027729,3]
[368452620,1751182250219,-1647.29,0.00027729,3]
[368452621,1751182250228,-827.88,0.00027729,3]
[368452623,1751182250238,-545.29,0.00027729,3]
[368452625,1751182250247,-490.0,0.00027729,3]
[368452627,1751182250256,-490.0,0.00027729,3]
[368452629,1751182250266,-490.0,0.00027729,3]
[368452631,1751182250275,-1136.05,0.00027729,3]
[368452633,1751182250284,-490.0,0.00027729,3]
[368452635,1751182250294,-490.0,0.00027729,3]
[368452637,1751182250303,-490.0,0.00027729,3]
[368452639,1751182250312,-490.0,0.00027729,3]
[368452641,1751182250321,-490.0,0.00027729,3]
[368452643,1751182250331,-491.67054684,0.00027729,3]
[368452645,1751182250341,-1898.37,0.00027729,3]
[368452647,1751182250351,-490.0,0.00027729,3]
[368452649,1751182250360,-490.0,0.00027729,3]
[368452651,1751182250369,-1682.68,0.00027729,3]
[368452653,1751182250378,-860.32,0.00027729,3]
[368452655,1751182250387,-490.0,0.00027729,3]
[368452657,1751182250396,-490.0,0.00027729,3]
[368452659,1751182250406,-1033.86,0.00027729,3]
[368452661,1751182250415,-1863.14,0.00027729,3]
[368452663,1751182250424,-490.0,0.00027729,3]
[368452665,1751182250434,-503.45,0.00027729,3]
[368452667,1751182250443,-490.0,0.00027729,3]
[368452669,1751182250452,-490.0,0.00027729,3]
[368452671,1751182250461,-559.45,0.00027729,3]
[368452672,1751182250470,-490.0,0.00027729,3]
[368452675,1751182250480,-490.0,0.00027729,3]
[368452676,1751182250490,-845.57,0.00027729,3]
[368452678,1751182250499,-1012.95,0.00027729,3]
[368452680,1751182250509,-490.0,0.00027729,3]
[368452682,1751182250518,-490.0,0.00027729,3]
[368452684,1751182250528,-490.0,0.00027729,3]
[368452686,1751182250537,-490.0,0.00027729,3]
[368452688,1751182250547,-763.04,0.00027729,3]
[368452690,1751182250556,-490.0,0.00027729,3]
[368452692,1751182250565,-490.0,0.00027729,3]
[368452694,1751182250574,-513.18,0.00027729,3]
[368452713,1751182250888,-490.0,0.00027729,3]
[368452716,1751182250914,-490.0,0.00027729,3]
[368452718,1751182250925,-754.81,0.00027729,3]
[368452720,1751182250934,-2083.43,0.00027729,3]
[368452722,1751182250943,-490.0,0.00027729,3]
[368452724,1751182250953,-490.0,0.00027729,3]
[368452726,1751182250962,-578.63,0.00027729,3]
[368452728,1751182250972,-490.0,0.00027729,3]
[368452730,1751182250981,-490.0,0.00027729,3]
[368452732,1751182250991,-490.0,0.00027729,3]
[368452734,1751182251000,-1192.32,0.00027729,3]
[368452736,1751182251010,-490.0,0.00027729,3]
[368452738,1751182251019,-1288.42,0.00027729,3]
[368452740,1751182251029,-1925.21,0.00027729,3]
[368452742,1751182251039,-2476.36,0.00027729,3]
[368452744,1751182251049,-902.85,0.00027729,3]
[368452746,1751182251059,-1164.16,0.00027729,3]
[368452748,1751182251068,-969.66,0.00027729,3]
[368452750,1751182251077,-490.0,0.00027729,3]
[368452752,1751182251089,-1053.26,0.00027729,3]
[368452754,1751182251098,-500.0,0.00027729,3]
[368452756,1751182251108,-500.0,0.00027729,3]
[368452758,1751182251117,-506.56319265,0.00027729,3]
[368452760,1751182251126,-490.0,0.00027729,3]
[368452762,1751182251136,-490.0,0.00027729,3]
[368452764,1751182251145,-1188.07,0.00027729,3]
[368452766,1751182251155,-490.0,0.00027729,3]
[368452768,1751182251164,-584.73,0.00027729,3]
[368452770,1751182251177,-490.0,0.00027729,3]
[368452772,1751182251187,-791.33,0.00027729,3]
[368452774,1751182251196,-500.0,0.00027729,2]
[368452776,1751182251205,-500.0,0.00027729,2]
[368452778,1751182251215,-502.68929836,0.00027729,2]
[368452780,1751182251224,-490.0,0.00027729,3]
[368452782,1751182251234,-1296.27,0.00027729,3]
[368452784,1751182251243,-490.0,0.00027729,3]
[368452786,1751182251252,-490.0,0.00027729,3]
[368452788,1751182251263,-490.0,0.00027729,3]
[368452790,1751182251272,-2820.61,0.00027729,3]
[368452792,1751182251282,-490.0,0.00027729,3]
[368452794,1751182251292,-1019.22,0.00027729,3]
[368452796,1751182251302,-490.0,0.00027729,3]
[368452798,1751182251311,-490.0,0.00027729,3]
[368452800,1751182251321,-2236.14,0.00027729,3]
[368452802,1751182251331,-492.3521354,0.00027729,3]
[368452804,1751182251340,-490.0,0.00027729,3]
[368452806,1751182251350,-490.0,0.00027729,3]
[368452808,1751182251360,-504.34374756,0.00027729,3]
[368452810,1751182251369,-630.74,0.00027729,3]
[368452812,1751182251379,-692.02,0.00027729,3]
[368452814,1751182251388,-490.0,0.00027729,3]
[368452816,1751182251398,-490.0,0.00027729,3]
[368452818,1751182251408,-2064.97,0.00027729,3]
[368452820,1751182251418,-1207.44,0.00027729,3]
[368452822,1751182251427,-500.0,0.00027729,3]
[368452824,1751182251437,-1001.03,0.00027729,3]
[368452826,1751182251447,-1139.8,0.00027729,3]
[368452828,1751182251456,-490.0,0.00027729,3]
[368452830,1751182251466,-2010.41,0.00027729,3]
[368452832,1751182251476,-1023.05,0.00027729,3]
[368452834,1751182251485,-273.01610196,0.00027729,3]
[368452836,1751182251495,-490.0,0.00027729,3]
[368452838,1751182251504,-3188.56,0.00027729,3]
[368452840,1751182251514,-490.0,0.00027729,3]
[368452842,1751182251524,-490.0,0.00027729,3]
[368452844,1751182251534,-490.0,0.00027729,3]
[368452846,1751182251543,-1542.42,0.00027729,3]
[368452848,1751182251553,-490.0,0.00027729,3]
[368452850,1751182251563,-490.0,0.00027729,3]
[368452852,1751182251573,-1406.31,0.00027729,3]
[368452854,1751182251582,-642.92,0.00027729,3]
[368452856,1751182251592,-691.64,0.00027729,3]
[368452858,1751182251601,-490.0,0.00027729,3]
[368452860,1751182251611,-1367.44,0.00027729,3]
[368452862,1751182251620,-500.0,0.00027729,3]
[368452864,1751182251630,-940.99,0.00027729,3]
[368452866,1751182251640,-490.0,0.00027729,3]
[368452868,1751182251650,-490.0,0.00027729,3]
[368452870,1751182251660,-2991.05,0.00027729,3]
[368452872,1751182251669,-490.0,0.00027729,3]
[368452874,1751182251679,-881.32,0.00027729,3]
[368452876,1751182251688,-2342.8,0.00027729,3]
[368452878,1751182251698,-505.55895388,0.00027739,2]
[368452880,1751182251708,-542.56,0.00027739,2]
[368452882,1751182251717,-500.0,0.00027739,3]
[368452884,1751182251728,-490.0,0.0002774,3]
[368452887,1751182251737,-490.0,0.0002774,3]
[368452889,1751182251747,-508.08,0.0002774,3]
[368452891,1751182251757,-604.29,0.0002774,3]
[368452893,1751182251766,-490.0,0.0002774,3]
[368452895,1751182251776,-490.0,0.0002774,3]
[368452896,1751182251785,-662.65,0.0002774,3]
[368452898,1751182251795,-490.0,0.0002774,3]
[368452900,1751182251805,-490.0,0.0002774,3]
[368452902,1751182251814,-585.29296046,0.0002774,3]
[368452904,1751182251824,-490.0,0.0002774,3]
[368452906,1751182251833,-530.55,0.0002774,3]
[368452908,1751182251843,-490.0,0.0002774,3]
[368452910,1751182251852,-490.0,0.0002774,3]
[368452912,1751182251861,-490.0,0.0002774,3]
[368452914,1751182251871,-490.0,0.0002774,3]
[368452916,1751182251880,-490.0,0.0002774,3]
[368452918,1751182251890,-490.0,0.0002774,3]
[368452920,1751182251900,-899.8,0.0002774,3]
[368452923,1751182251909,-490.0,0.0002774,3]
[368452925,1751182251919,-490.0,0.0002774,3]
[368452927,1751182251928,-490.0,0.0002774,3]
[368452929,1751182251937,-490.0,0.0002774,3]
[368452930,1751182251946,-493.73,0.0002774,3]
[368452932,1751182251955,-490.0,0.0002774,3]
[368452935,1751182251965,-490.0,0.0002774,3]
[368452936,1751182251974,-490.0,0.0002774,3]
[368452937,1751182251984,-1215.98,0.0002774,3]
[368452938,1751182251994,-490.0,0.0002774,3]
[368452939,1751182252003,-490.0,0.0002774,3]
[368452940,1751182252013,-490.0,0.0002774,3]
[368452941,1751182252023,-490.0,0.0002774,3]
[368452942,1751182252033,-1152.7,0.0002774,3]
[368452943,1751182252042,-490.0,0.0002774,3]
[368452944,1751182252052,-600.6,0.0002774,3]
[368452945,1751182252062,-1773.87,0.0002774,3]
[368452946,1751182252072,-504.67,0.0002774,3]
[368452947,1751182252082,-490.0,0.0002774,3]
[368452948,1751182252091,-490.0,0.0002774,3]
[368452949,1751182252101,-490.0,0.0002774,3]
[368452950,1751182252111,-571.46,0.0002774,3]
[368452951,1751182252122,-491.2,0.0002774,3]
[368452952,1751182252131,-490.0,0.0002774,3]
[368452953,1751182252141,-490.0,0.0002774,3]
[368452954,1751182252151,-490.0,0.0002774,3]
[368452955,1751182252162,-490.0,0.0002774,3]
[368452956,1751182252174,-382.98736207,0.0002774,3]
[368452957,1751182252184,-914.08,0.0002774,3]
[368452959,1751182252194,-490.0,0.0002774,3]
[368452961,1751182252203,-490.0,0.0002774,3]
[368452962,1751182252214,-1598.03,0.0002774,3]
[368452963,1751182252224,-560.03,0.0002774,3]
[368452964,1751182252234,-490.0,0.0002774,3]
[368452965,1751182252245,-490.0,0.0002774,3]
[368452966,1751182252255,-2197.41,0.0002774,3]
[368452967,1751182252265,-490.0,0.0002774,3]
[368452968,1751182252275,-1521.71,0.0002774,3]
[368452969,1751182252285,-938.22,0.0002774,3]
[368452970,1751182252295,-1941.8,0.0002774,3]
[368452971,1751182252305,-490.0,0.0002774,3]
[368452972,1751182252315,-780.19,0.0002774,3]
[368452973,1751182252325,-490.0,0.0002774,3]
[368452974,1751182252334,-490.0,0.0002774,3]
[368452975,1751182252344,-2180.27,0.0002774,3]
[368452976,1751182252354,-504.24,0.0002774,3]
[368452977,1751182252364,-490.0,0.0002774,3]
[368452978,1751182252374,-490.0,0.0002774,3]
[368452979,1751182252384,-835.78,0.0002774,3]
[368452980,1751182252394,-490.0,0.0002774,3]
[368452981,1751182252404,-504.61,0.0002774,3]
[368452982,1751182252415,-2659.93,0.0002774,3]
[368452983,1751182252424,-490.0,0.0002774,3]
[368452984,1751182252433,-2182.16,0.0002774,3]
[368452985,1751182252442,-490.0,0.0002774,3]
[368452986,1751182252451,-1937.08,0.0002774,3]
[368452987,1751182252461,-490.0,0.0002774,3]
[368452988,1751182252470,-3046.88,0.0002774,3]
[368452989,1751182252480,-490.0,0.0002774,3]
[368452990,1751182252489,-1004.09,0.0002774,3]
[368452991,1751182252498,-500.0,0.0002774,3]
[368452992,1751182252508,-500.0,0.0002774,3]
[368452993,1751182252518,-500.0,0.0002774,3]
[368452994,1751182252528,-2032.67,0.0002774,3]
[368452995,1751182252538,-1938.19,0.0002774,3]
[368452997,1751182252548,-2554.32,0.0002774,3]
[368452999,1751182252558,-490.0,0.0002774,3]
[368453001,1751182252568,-1056.03,0.0002774,3]
[368453003,1751182252577,-490.0,0.0002774,3]
[368453005,1751182252587,-490.0,0.0002774,3]
[368453006,1751182252596,-490.0,0.0002774,3]
[368453007,1751182252606,-300.0,0.0002774,3]
[368453008,1751182252616,-490.0,0.0002774,3]
[368453009,1751182252626,-300.0,0.0002774,4]
[368453010,1751182252635,-545.67,0.0002774,3]
[368453011,1751182252644,-490.0,0.0002774,3]
[368453012,1751182252654,-1204.11,0.0002774,3]
[368453013,1751182252663,-1295.32,0.0002774,3]
[368453014,1751182252673,-2630.87,0.0002774,3]
[368453015,1751182252683,-490.0,0.0002774,3]
[368453016,1751182252692,-2718.03,0.0002774,3]
[368453017,1751182252702,-490.0,0.0002774,3]
[368453018,1751182252711,-490.0,0.0002774,3]
[368453019,1751182252721,-490.0,0.0002774,3]
[368453020,1751182252730,-490.0,0.0002774,3]
[368453022,1751182252740,-490.0,0.0002774,3]
[368453023,1751182252750,-2542.12,0.0002774,3]
[368453024,1751182252760,-490.0,0.0002774,3]
[368453025,1751182252769,-490.0,0.0002774,3]
[368453026,1751182252779,-490.0,0.0002774,3]
[368453027,1751182252790,-1526.26,0.0002774,3]
[368453028,1751182252800,-490.0,0.0002774,3]
[368453029,1751182252810,-437.57,0.0002774,3]
[368453030,1751182252820,-490.0,0.0002774,3]
[368453031,1751182252830,-490.0,0.0002774,3]
[368453032,1751182252840,-1768.2,0.0002774,3]
[368453033,1751182252855,-1581.27,0.0002774,3]
[368453034,1751182252865,-490.0,0.0002774,3]
[368453035,1751182252875,-490.0,0.0002774,3]
[368453036,1751182252885,-1700.74,0.0002774,3]
[368453037,1751182252895,-1700.74,0.0002774,3]
[368453038,1751182252905,-1700.74,0.0002774,3]
[368453039,1751182252915,-1700.74,0.0002774,3]
[368453040,1751182252925,-1700.74,0.0002774,3]
[368453041,1751182252935,-1700.74,0.0002774,3]
[368453042,1751182252946,-490.0,0.0002774,3]
[368453043,1751182252956,-490.0,0.0002774,3]
[368453044,1751182252967,-490.0,0.0002774,3]
[368453045,1751182252976,-1092.62,0.0002774,3]
[368453046,1751182252986,-518.72,0.0002774,3]
[368453047,1751182252996,-587.51,0.0002774,3]
[368453048,1751182253006,-490.0,0.0002774,3]
[368453049,1751182253016,-1500.09,0.0002774,3]
[368453050,1751182253027,-539.26,0.0002774,3]
[368453051,1751182253036,-490.0,0.0002774,3]
[368453052,1751182253046,-490.0,0.0002774,3]
[368453053,1751182253056,-500.0,0.0002774,3]
[368453054,1751182253066,-490.0,0.0002774,3]
[368453055,1751182253075,-517.05,0.0002774,3]
[368453056,1751182253086,-490.0,0.0002774,3]
[368453057,1751182253096,-490.0,0.0002774,3]
[368453058,1751182253106,-490.0,0.0002774,3]
[368453060,1751182253116,-879.49,0.0002774,3]
[368453062,1751182253125,-490.0,0.0002774,3]
[368453064,1751182253135,-490.0,0.0002774,3]
[368453065,1751182253145,-490.0,0.0002774,3]
[368453066,1751182253154,-1436.05,0.0002774,3]
[368453067,1751182253165,-490.0,0.0002774,3]
[368453068,1751182253181,-490.0,0.0002774,3]
[368453069,1751182253190,-299.35015959,0.0002774,3]
[368453070,1751182253201,-490.0,0.0002774,3]
[368453071,1751182253211,-490.0,0.0002774,3]
[368453072,1751182253221,-490.0,0.0002774,3]
[368453073,1751182253231,-1700.74,0.00027772,3]
[368453074,1751182253241,-159.727904,0.00027773,5]
[368453075,1751182253250,-536.83959098,0.00027773,5]
[368453076,1751182253261,-166.20442101,0.00027773,5]
[368453077,1751182253271,-164.71044508,0.00027773,5]
[368453078,1751182253396,-500.0,0.00027773,5]
[368453079,1751182253406,-490.0,0.00027782,3]
[368453080,1751182253415,-799.62,0.00027782,3]
[368453081,1751182253425,-376.88608412,0.00027782,3]
[368453082,1751182253435,-438.81468834,0.00027782,3]
[368453083,1751182253445,-520.21621588,0.00027782,3]
[368453084,1751182253454,-490.28,0.00027782,3]
[368453085,1751182253464,-492.54,0.00027782,3]
[368453086,1751182253474,-490.0,0.00027782,3]
[368453087,1751182253483,-964.76709245,0.00027785,2]
[368453088,1751182253492,-152.63619725,0.00027796,2]
[368453089,1751182253502,-1600.0,0.000278,10]
[368453090,1751182253511,-382.05658395,0.00027822,2]
[368453091,1751182253520,-500.0,0.00027871,3]
[368453092,1751182253529,-500.0,0.00027871,3]
[368453093,1751182253539,-964.76709245,0.00027877,2]
[368453094,1751182253548,-490.0,0.00027878,3]
[368453095,1751182253557,-495.22296629,0.00027878,3]
[368453096,1751182253566,-490.0,0.00027878,3]
[368453097,1751182253575,-490.0,0.00027878,3]
[368453098,1751182253584,-500.33,0.00027878,3]
[368453099,1751182253593,-490.0,0.00027878,3]
[368453100,1751182253603,-490.0,0.00027878,3]
[368453101,1751182253612,-515.65,0.00027878,3]
[368453102,1751182253621,-490.0,0.00027878,3]
[368453103,1751182253631,-2086.22,0.00027878,3]
[368453104,1751182253640,-490.0,0.00027878,3]
[368453105,1751182253649,-490.0,0.00027878,3]
[368453106,1751182253659,-490.0,0.00027878,3]
[368453108,1751182253669,-4978.16,0.00027878,3]
[368453109,1751182253678,-316.78321072,0.00027878,3]
[368453110,1751182253687,-1878.24,0.00027878,3]
[368453111,1751182253696,-490.0,0.00027878,3]
[368453112,1751182253705,-490.0,0.00027878,3]
[368453113,1751182253715,-490.0,0.00027878,3]
[368453114,1751182253724,-490.0,0.00027878,3]
[368453115,1751182253733,-490.0,0.00027878,3]
[368453116,1751182253742,-2468.25,0.00027878,3]
[368453117,1751182253752,-490.0,0.00027878,3]
[368453118,1751182253761,-2136.44,0.00027878,3]
[368453119,1751182253770,-548.4,0.00027878,3]
[368453120,1751182253780,-7535.42,0.00027878,3]
[368453121,1751182253789,-490.0,0.00027878,3]
[368453122,1751182253799,-321.28315356,0.0002788,10]
[368453123,1751182253808,-489.25539032,0.00027881,3]
[368453124,1751182253817,-490.0,0.00027881,3]
[368453125,1751182253827,-659.74,0.00027881,3]
[368453126,1751182253836,-490.0,0.00027881,3]
[368453127,1751182253845,-495.76692256,0.00027881,3]
[368453128,1751182253856,-490.0,0.00027881,3]
[368453129,1751182253866,-508.77,0.00027881,3]
[368453130,1751182253875,-652.71,0.00027881,3]
[368453131,1751182253884,-490.0,0.00027881,3]
[368453132,1751182253893,-2322.34,0.00027881,3]
[368453133,1751182253902,-1347.64,0.00027881,3]
[368453134,1751182253913,-490.0,0.00027881,3]
[368453135,1751182253922,-490.0,0.00027881,3]
[368453136,1751182253931,-490.0,0.00027881,3]
[368453137,1751182253941,-2628.71,0.00027881,3]
[368453138,1751182253950,-526.04,0.00027881,3]
[368453139,1751182253960,-490.0,0.00027881,3]
[368453140,1751182253969,-490.0,0.00027881,3]
[368453141,1751182253979,-490.0,0.00027881,3]
[368453142,1751182253988,-1726.56,0.00027881,3]
[368453143,1751182253997,-645.02,0.00027881,3]
[368453144,1751182254007,-517.4,0.00027881,3]
[368453145,1751182254017,-591.71,0.00027881,3]
[368453146,1751182254027,-1536.91,0.00027881,3]
[368453147,1751182254037,-507.57015771,0.00027881,3]
[368453148,1751182254046,-1210.34,0.00027881,3]
[368453149,1751182254056,-915.7,0.00027881,3]
[368453150,1751182254066,-1599.27,0.00027881,3]
[368453151,1751182254075,-497.05685982,0.00027881,3]
[368453152,1751182254085,-1996.5,0.00027881,3]
[368453153,1751182254094,-1349.21,0.00027881,3]
[368453154,1751182254104,-1183.45,0.00027881,3]
[368453155,1751182254113,-490.0,0.00027881,3]
[368453156,1751182254123,-2996.24,0.00027881,3]
[368453157,1751182254132,-986.41,0.00027881,3]
[368453158,1751182254142,-490.0,0.00027881,3]
[368453159,1751182254151,-1708.84,0.00027881,3]
[368453160,1751182254160,-490.0,0.00027881,3]
[368453161,1751182254169,-1464.97,0.00027881,3]
[368453162,1751182254181,-1068.44,0.00027881,3]
[368453163,1751182254191,-1269.67,0.00027881,3]
[368453164,1751182254200,-1547.48,0.00027881,3]
[368453165,1751182254211,-627.18,0.00027881,3]
[368453166,1751182254221,-1632.32,0.00027881,3]
[368453167,1751182254230,-1103.54,0.00027881,3]
[368453168,1751182254239,-490.0,0.00027881,3]
[368453169,1751182254251,-490.0,0.00027881,3]
[368453170,1751182254260,-2740.12,0.00027881,3]
[368453171,1751182254270,-769.51,0.00027881,3]
[368453172,1751182254280,-490.0,0.00027881,3]
[368453173,1751182254289,-490.0,0.00027881,3]
[368453174,1751182254298,-1214.36,0.00027881,3]
[368453175,1751182254308,-490.0,0.00027881,3]
[368453176,1751182254317,-1013.34,0.00027881,3]
[368453177,1751182254327,-500.0,0.00027881,3]
[368453178,1751182254336,-490.0,0.00027881,3]
[368453179,1751182254346,-1528.6,0.00027881,3]
[368453180,1751182254355,-490.0,0.00027881,3]